bitfinex-derivatives/quotes_SOLF0:USTF0_20240908
["timestamp","ask_amount","ask_price","bid_price","bid_amount"]
[1725796156718,1.2082,130.44,130.3,1.3045]
[1725796156920,1.2082,130.44,130.31,1.40921378]
[1725796157116,1.2082,130.44,130.31,5.24743102]
[1725796157321,1.2082,130.44,130.3,1.3045]
[1725796157623,1.2082,130.44,130.31,1.40922287]
[1725796157821,1.2082,130.44,130.31,5.19757819]
[1725796158126,1.2082,130.44,130.3,1.3045]
[1725796158429,1.2082,130.44,130.31,1.40922287]
[1725796158631,1.2082,130.44,130.31,5.21100255]
[1725796158834,1.2082,130.44,130.31,3.80177968]
[1725796159036,1.2082,130.44,130.3,1.3045]
[1725796159236,1.2082,130.44,130.31,1.40922287]
[1725796159437,1.2082,130.44,130.31,5.23239126]
[1725796159649,1.2082,130.44,130.32,1.4092055]
[1725796160029,1.2082,130.44,130.3,1.3045]
[1725796160228,1.2082,130.44,130.31,1.40920591]
[1725796160425,1.2082,130.44,130.31,5.18442647]
[1725796160638,1.2082,130.44,130.32,1.40920591]
[1725796160837,1.2082,130.44,130.31,3.77522056]
[1725796161027,1.2082,130.44,130.32,1.40920591]
[1725796161233,1.2082,130.44,130.31,3.76869965]
[1725796161435,1.2082,130.44,130.32,1.40920591]
[1725796161634,1.2082,130.44,130.32,3.76946682]
[1725796161839,1.2082,130.44,130.3,1.3045]
[1725796162149,1.2082,130.44,130.28,2.6555]
[1725796162534,1.0,130.43,130.28,2.6555]
[1725796163144,1.2823,130.42,130.28,2.6555]
[1725796167340,1.2823,130.42,130.29,1.40945779]
[1725796167838,1.2823,130.42,130.3,1.2893]
[1725796174243,1.2823,130.42,130.31,1.40929166]
[1725796174443,1.2823,130.42,130.32,2.6312]
[1725796175346,1.2823,130.42,130.32,6.43327134]
[1725796177337,1.2823,130.42,130.33,1.40913948]
[1725796177736,3.7597791,130.45,130.33,1.40913948]
[1725796177941,2.513,130.48,130.33,1.40913948]
[1725796179145,2.513,130.48,130.32,6.43327134]
[1725796180851,1.0,130.47,130.32,6.43327134]
[1725796181844,1.2093,130.46,130.32,6.43327134]
[1725796182045,23.06,130.45,130.32,6.43327134]
[1725796182550,1.3475,130.44,130.32,1.363]
[1725796182855,1.3475,130.44,130.26,2.6847]
[1725796183049,1.3475,130.44,130.26,3.9612]
[1725796183345,1.0,130.43,130.26,3.9612]
[1725796200049,0.28199916,130.42,130.26,3.9612]
[1725796200755,1.0,130.41,130.26,3.9612]
[1725796201459,1.2085,130.4,130.26,3.9612]
[1725796201852,1.2774,130.39,130.26,3.9612]
[1725796202266,2.2774,130.39,130.26,3.9612]
[1725796202667,23.06,130.38,130.26,3.9612]
[1725796203160,26.90326116,130.38,130.26,3.9612]
[1725796203363,1.0,130.37,130.26,3.9612]
[1725796232175,23.34213291,130.36,130.26,3.9612]
[1725796232378,23.06,130.36,130.26,3.9612]
[1725796232778,1.0,130.35,130.26,3.9612]
[1725796237076,0.28215697,130.34,130.26,3.9612]
[1725796237279,2.5349,130.34,130.26,1.2765]
[1725796237782,1.0,130.33,130.26,1.2765]
[1725796251790,1.0,130.33,130.21,2.6689]
[1725796251993,1.0,130.33,130.22,1.2801]
[1725796289211,23.06,130.37,130.22,1.2801]
[1725796290611,2.3905,130.36,130.22,1.2801]
[1725796306443,0.2821472,130.35,130.22,1.2801]
[1725796307243,1.0,130.34,130.22,1.2801]
[1725796307445,1.2108,130.33,130.22,1.2801]
[1725796307945,1.2878,130.32,130.22,1.2801]
[1725796308141,2.2878,130.32,130.22,1.2801]
[1725796309643,2.2878,130.32,130.15,4.0452]
[1725796309843,2.2878,130.32,130.16,1.41084052]
[1725796310040,2.2878,130.32,130.16,5.24098622]
[1725796310240,2.2878,130.32,130.16,3.8301457]
[1725796310441,2.2878,130.32,130.15,4.0452]
[1725796310643,2.2878,130.32,130.16,1.41085608]
[1725796310847,2.2878,130.32,130.16,5.25712871]
[1725796311046,2.2878,130.32,130.16,3.84627263]
[1725796311247,2.2878,130.32,130.15,4.0452]
[1725796314246,0.28222281,130.31,130.15,4.0452]
[1725796314441,0.2822385,130.31,130.15,4.0452]
[1725796314645,23.06,130.3,130.15,4.0452]
[1725796314841,23.06,130.3,130.15,2.6588]
[1725796315047,24.06,130.3,130.15,2.6588]
[1725796315450,0.28226098,130.29,130.15,2.6588]
[1725796315847,26.97735156,130.3,130.15,2.6588]
[1725796316038,0.28226263,130.29,130.15,2.6588]
[1725796316242,1.0,130.28,130.15,2.6588]
[1725796316439,1.2976,130.27,130.15,2.6588]
[1725796316642,2.5096,130.27,130.15,2.6588]
[1725796317746,1.0,130.26,130.15,2.6588]
[1725796321945,1.0,130.26,130.15,1.3477]
[1725796323547,1.0,130.26,130.11,1.3699]
[1725796323854,1.0,130.26,130.12,1.2769]
[1725796324654,0.28236622,130.25,130.12,1.2769]
[1725796325356,1.0,130.24,130.12,1.2769]
[1725796325547,24.06,130.24,130.12,1.2769]
[1725796343575,23.06,130.22,130.12,1.2769]
[1725796356185,24.2733,130.22,130.12,1.2769]
[1725796356882,25.6534,130.22,130.12,1.2769]
[1725796358182,25.6534,130.22,130.11,1.3699]
[1725796358380,25.6534,130.22,130.1,1.3342]
[1725796358786,25.6534,130.22,130.09,3.92407492]
[1725796359081,25.6534,130.22,130.07,1.3209]
[1725796359292,1.0,130.21,130.07,5.09885058]
[1725796368788,1.0,130.21,130.08,1.4118761]
[1725796368993,1.0,130.21,130.07,5.09885058]
[1725796369194,1.0,130.21,130.08,1.41186138]
[1725796371790,1.0,130.21,130.07,5.09885058]
[1725796371991,1.0,130.21,130.08,1.41185658]
[1725796375884,1.0,130.21,130.07,5.09885058]
[1725796376096,1.0,130.21,130.08,1.41185658]
[1725796377594,1.0,130.21,130.07,5.09885058]
[1725796377799,1.0,130.21,130.08,1.41185874]
[1725796380098,1.0,130.21,130.07,5.09885058]
[1725796388891,23.06,130.2,130.07,5.09885058]
[1725796389903,1.0,130.21,130.07,5.09885058]
[1725796390211,23.06,130.2,130.07,5.09885058]
[1725796391004,1.0,130.21,130.07,5.09885058]
[1725796392314,23.06,130.2,130.07,5.09885058]
[1725796393705,49.95729909,130.2,130.07,5.09885058]
[1725796393900,23.06,130.2,130.07,5.09885058]
[1725796394501,1.0,130.21,130.07,5.09885058]
[1725796394897,23.06,130.2,130.07,5.09885058]
[1725796396003,1.0,130.21,130.07,5.09885058]
[1725796396602,23.06,130.2,130.07,5.09885058]
[1725796397700,23.06,130.19,130.07,5.09885058]
[1725796398905,1.0,130.18,130.06,2.7194]
[1725796399104,2.5564,130.17,130.06,6.57959521]
[1725796399813,1.0,130.16,130.06,6.57959521]
[1725796400305,1.0,130.16,130.07,1.3138]
[1725796400508,23.06,130.15,130.07,1.3138]
[1725796401213,23.06,130.13,130.07,1.3138]
[1725796405407,23.06,130.13,130.06,2.7194]
[1725796409213,1.0,130.16,129.96,1.284]
[1725796409408,23.06,130.15,129.97,4.0132164]
[1725796409613,23.06,130.15,129.98,1.4128164]
[1725796409817,26.98327208,130.15,129.98,5.22653209]
[1725796410016,26.98327208,130.15,129.99,1.4128164]
[1725796410214,1.0,130.14,129.97,2.6004]
[1725796410417,1.0,130.14,129.98,1.41281877]
[1725796411608,1.0,130.14,129.97,6.46908609]
[1725796411815,1.0,130.14,129.98,1.41281905]
[1725796415623,1.0,130.14,129.97,6.46908609]
[1725796415824,1.0,130.14,129.98,1.41281077]
[1725796419723,1.0,130.14,129.97,6.46908609]
[1725796419926,1.0,130.14,129.98,1.41278353]
[1725796420529,1.0,130.14,129.97,6.46908609]
[1725796421131,0.28259662,130.13,129.97,6.46908609]
[1725796421737,1.0,130.12,129.97,6.46908609]
[1725796421935,1.3726,130.11,129.97,6.46908609]
[1725796422239,2.5877,130.11,129.97,6.46908609]
[1725796425248,25.6477,130.11,129.97,6.46908609]
[1725796426050,23.06,130.09,129.97,6.46908609]
[1725796426944,23.06,130.07,129.97,6.46908609]
[1725796428055,26.97123759,130.07,129.97,6.46908609]
[1725796429843,155.63569982,130.1,129.97,6.46908609]
[1725796430050,23.07,130.09,129.97,6.46908609]
[1725796430251,26.94085608,130.08,129.97,6.46908609]
[1725796430453,23.07,130.08,129.97,6.46908609]
[1725796430952,26.93316606,130.08,129.97,6.46908609]
[1725796431458,23.07,130.08,129.97,6.46908609]
[1725796431655,23.07,130.09,129.97,6.46908609]
[1725796432963,23.07,130.07,129.97,6.46908609]
[1725796435858,23.07,130.09,129.97,6.46908609]
[1725796440162,154.63569982,130.1,129.97,6.46908609]
[1725796440560,23.07,130.14,129.98,1.41299804]
[1725796441066,23.07,130.16,129.98,1.41299804]
[1725796441461,23.07,130.14,129.98,1.41299804]
[1725796442164,23.07,130.14,129.97,14.15008609]
[1725796442361,23.07,130.14,129.98,1.4129572]
[1725796443575,23.07,130.16,129.98,1.4129572]
[1725796446674,23.07,130.16,129.99,1.41272198]
[1725796446868,23.07,130.16,130.0,1.41272198]
[1725796447068,23.07,130.16,130.01,2.74142198]
[1725796447272,23.07,130.16,130.02,2.6493]
[1725796448974,2.5091,130.17,130.02,2.6493]
[1725796453875,2.5091,130.17,129.95,19.0800481]
[1725796454069,2.5091,130.17,129.98,1.3106]
[1725796454070,23.35256898,130.16,129.98,1.3106]
[1725796454270,0.28260439,130.15,129.98,1.3106]
[1725796454579,23.07,130.14,129.98,5.11748434]
[1725796454870,23.07,130.14,129.99,1.41290911]
[1725796455274,23.07,130.14,129.98,5.11748434]
[1725796455470,23.07,130.14,129.99,1.41283099]
[1725796459589,23.07,130.14,129.98,5.11748434]
[1725796459781,23.07,130.14,129.99,1.41276906]
[1725796463875,23.07,130.14,130.0,1.41276578]
[1725796464080,23.07,130.14,129.98,12.79848434]
[1725796464280,23.07,130.14,129.99,1.41276578]
[1725796468081,23.07,130.14,130.0,1.41276578]
[1725796468387,23.07,130.14,129.98,12.79848434]
[1725796468691,23.07,130.14,129.99,1.41276578]
[1725796470086,3.90529516,130.15,129.99,1.41276578]
[1725796470087,26.97529516,130.15,129.99,1.41276578]
[1725796470285,1.0,130.16,129.99,1.41276578]
[1725796470592,37.05467527,130.17,129.99,1.41276578]
[1725796470783,26.90982635,130.16,130.0,1.2723]
[1725796470985,2.5091,130.17,130.01,1.41276578]
[1725796471288,2.5091,130.17,130.02,7.681]
[1725796471490,2.5091,130.17,130.03,1.41276578]
[1725796472086,2.5091,130.17,130.04,1.41234277]
[1725796472391,2.5091,130.17,130.02,8.9533]
[1725796472583,2.5091,130.17,130.03,1.41232298]
[1725796475993,2.5091,130.17,130.02,8.9533]
[1725796476195,2.5091,130.17,130.03,1.41233034]
[1725796480187,2.5091,130.17,130.04,1.41208472]
[1725796480393,2.5091,130.17,130.05,1.41208472]
[1725796480593,2.5091,130.17,130.06,4.12818472]
[1725796480793,2.5091,130.17,130.06,6.65024278]
[1725796484303,2.5091,130.17,130.07,1.2586]
[1725796487004,2.5091,130.17,130.08,1.41187621]
[1725796492910,2.5091,130.17,130.07,8.9396]
[1725796493209,2.5091,130.17,130.08,1.41184535]
[1725796496605,2.5091,130.17,130.09,1.41177875]
[1725796496806,2.5091,130.17,130.07,8.9396]
[1725796497005,2.5091,130.17,130.08,1.41177875]
[1725796500613,2.5091,130.17,130.07,8.9396]
[1725796500908,2.5091,130.17,130.08,1.4117809]
[1725796501910,2.5091,130.17,130.07,8.9396]
[1725796502215,2.5091,130.17,130.08,1.41177875]
[1725796504218,2.5091,130.17,130.09,1.41178091]
[1725796504418,2.5091,130.17,130.07,8.9396]
[1725796504614,2.5091,130.17,130.08,1.41178091]
[1725796508118,2.5091,130.17,130.07,8.9396]
[1725796508315,2.5091,130.17,130.08,1.41178755]
[1725796508825,2.5091,130.17,130.07,8.9396]
[1725796513024,2.5091,130.17,130.07,7.681]
[1725796515626,2.5091,130.17,130.07,11.55358211]
[1725796516025,2.5091,130.17,130.07,7.681]
[1725796516628,2.5091,130.17,130.07,11.58586324]
[1725796522224,2.5091,130.17,130.07,3.90486324]
[1725796522434,2.5091,130.17,130.06,2.7161]
[1725796522927,2.5091,130.17,130.06,6.56263807]
[1725796523624,2.5091,130.17,130.06,5.24173807]
[1725796530135,2.5091,130.17,130.07,1.3854]
[1725796533628,2.5091,130.17,130.08,1.3942]
[1725796537443,184.66851418,130.2,130.08,1.3942]
[1725796547940,161.59851418,130.2,130.08,1.3942]
[1725796552259,2.4922,130.19,130.08,1.3942]
[1725796560867,161.59851418,130.2,130.08,1.3942]
[1725796561060,161.59851418,130.2,130.09,1.41181743]
[1725796561765,161.59851418,130.2,130.1,1.2732]
[1725796562261,1.3704,130.22,130.11,1.337]
[1725796562658,1.3704,130.22,130.12,1.3683]
[1725796564660,1.3704,130.22,130.11,1.337]
[1725796568866,1.3704,130.22,130.08,1.2654]
[1725796569273,1.3704,130.22,130.06,6.56303807]
[1725796569974,1.3704,130.22,130.07,1.41198992]
[1725796570171,1.3704,130.22,130.06,6.56303807]
[1725796571278,1.3704,130.22,130.06,5.20313807]
[1725796572567,24.4404,130.22,130.06,5.20313807]
[1725796573774,23.07,130.21,130.06,5.20313807]
[1725796574772,1.3704,130.22,130.06,5.20313807]
[1725796575471,1.0,130.21,130.06,5.20313807]
[1725796575670,24.07,130.21,130.06,5.20313807]
[1725796575871,50.96163655,130.21,130.06,5.20313807]
[1725796595483,50.96163655,130.21,130.06,3.84653807]
[1725796595692,50.96163655,130.21,130.04,1.3031]
[1725796595892,0.28248533,130.2,130.04,5.1943375]
[1725796596190,50.96163655,130.21,130.04,5.1943375]
[1725796596390,0.2824792,130.2,130.04,5.1943375]
[1725796597588,1.0,130.19,130.04,5.1943375]
[1725796597786,1.392,130.18,130.04,5.1943375]
[1725796597988,23.07,130.17,130.04,5.1943375]
[1725796601697,23.07,130.16,129.99,3.56407551]
[1725796601999,23.07,130.16,129.96,1.3049]
[1725796602289,24.07,130.16,129.97,1.41268982]
[1725796602692,1.0,130.16,129.97,12.66676533]
[1725796602886,1.0,130.16,129.98,6.76057343]
[1725796603086,1.0,130.16,129.99,1.41268982]
[1725796603295,1.0,130.16,129.99,3.99168982]
[1725796603498,1.0,130.16,130.0,2.72888982]
[1725796603690,1.0,130.16,130.01,1.41268982]
[1725796606497,1.0,130.16,130.0,5.20381196]
[1725796606696,1.0,130.16,130.01,1.41260869]
[1725796610804,1.0,130.16,130.0,5.20381196]
[1725796611006,1.0,130.16,130.01,1.41259232]
[1725796611400,1.0,130.16,130.0,5.20381196]
[1725796611602,1.0,130.16,130.01,1.41260078]
[1725796611798,1.0,130.16,130.0,5.20381196]
[1725796612103,1.0,130.16,130.01,1.41260078]
[1725796613408,1.0,130.16,130.0,5.20381196]
[1725796613618,1.0,130.16,130.01,1.41260078]
[1725796614709,1.0,130.16,130.0,5.20381196]
[1725796614906,1.0,130.16,130.01,1.41260294]
[1725796616802,1.0,130.16,130.0,5.20381196]
[1725796617006,1.0,130.16,130.01,1.41260057]
[1725796618611,1.0,130.16,130.02,1.4125469]
[1725796618805,23.07,130.17,130.03,4.0247469]
[1725796619110,23.07,130.17,130.04,1.3104]
[1725796620805,2.6034,130.18,130.04,1.3104]
[1725796621003,2.6034,130.18,130.05,1.41219498]
[1725796621304,2.6034,130.18,130.04,1.3104]
[1725796621612,2.6034,130.18,130.05,1.41218292]
[1725796624011,1.392,130.18,130.05,1.41218292]
[1725796624413,1.213,130.21,130.05,1.41218292]
[1725796625312,1.213,130.21,130.06,1.41214532]
[1725796625516,1.213,130.21,130.04,9.0004]
[1725796625709,1.213,130.21,130.05,1.41214546]
[1725796630316,1.213,130.21,130.06,1.4120474]
[1725796630508,1.213,130.21,130.04,9.0004]
[1725796630509,1.213,130.21,130.07,1.4120474]
[1725796630714,1.213,130.21,130.08,2.6383]
[1725796630919,1.213,130.21,130.09,1.2857]
[1725796631111,1.213,130.21,130.09,5.06470722]
[1725796637011,1.3886,130.22,130.1,1.41174691]
[1725796637411,1.3886,130.22,130.11,1.41155621]
[1725796637616,1.3886,130.22,130.09,5.06470722]
[1725796637816,1.3886,130.22,130.1,1.41155621]
[1725796638720,1.2122,130.25,130.1,1.41155621]
[1725796638920,2.5027,130.25,130.1,1.41155621]
[1725796641516,2.5027,130.25,130.11,1.41154885]
[1725796641715,2.5027,130.25,130.09,5.06470722]
[1725796641917,2.5027,130.25,130.1,1.41154885]
[1725796645427,2.5027,130.25,130.11,1.41154885]
[1725796645629,2.5027,130.25,130.09,5.06470722]
[1725796645926,2.5027,130.25,130.1,1.41154885]
[1725796646624,2.5027,130.25,130.11,1.4115734]
[1725796646825,3.76814934,130.24,130.09,5.06470722]
[1725796647031,3.76814934,130.24,130.1,1.4115734]
[1725796649528,3.76814934,130.24,130.11,1.41158567]
[1725796649722,3.76814934,130.24,130.09,5.06470722]
[1725796649924,3.76814934,130.24,130.1,1.41157743]
[1725796652723,2.5027,130.25,130.1,1.41157743]
[1725796653431,2.5027,130.25,130.09,5.06470722]
[1725796659335,1.0,130.24,130.09,5.06470722]
[1725796659539,23.06,130.23,130.09,5.06470722]
[1725796660333,3.82068012,130.22,130.09,5.06470722]
[1725796660735,1.2118,130.21,130.09,5.06470722]
[1725796661438,23.06,130.2,130.09,5.06470722]
[1725796663338,1.2118,130.21,130.09,5.06470722]
[1725796686457,1.2118,130.21,130.1,1.41169115]
[1725796686853,1.2118,130.21,130.09,5.06470722]
[1725796721890,1.2118,130.21,130.09,3.77900722]
[1725796722089,1.2118,130.21,130.08,2.6383]
[1725796722793,24.2718,130.21,130.08,6.52727894]
[1725796722987,1.3037,130.2,130.08,6.52727894]
[1725796723490,23.06,130.19,130.08,6.52727894]
[1725796724583,23.06,130.18,130.08,6.52727894]
[1725796724784,3.82436587,130.17,130.08,6.52727894]
[1725796725095,1.2127,130.16,130.08,6.52727894]
[1725796742914,1.0,130.2,130.08,6.52727894]
[1725796746006,1.2136,130.19,130.08,6.52727894]
[1725796747116,2.4978,130.19,130.08,6.52727894]
[1725796748509,1.0,130.18,130.08,6.52727894]
[1725796749522,1.0,130.18,130.08,10.37087894]
[1725796749910,24.06,130.18,130.08,10.37087894]
[1725796750108,3.8429,130.12,130.08,10.37087894]
[1725796751412,3.8429,130.12,130.09,3.8436]
[1725796755816,3.8431,130.11,130.08,10.37107894]
[1725796758821,3.79737105,130.16,130.08,6.52727894]
[1725796759131,1.0,130.18,130.08,2.6383]
[1725796759323,1.2144,130.15,130.08,2.6383]
[1725796759530,3.8436,130.1,130.08,2.6383]
[1725796762026,23.06,130.13,130.05,5.1524]
[1725796763030,3.8442,130.08,130.05,5.1524]
[1725796767825,23.06,130.13,130.05,1.3077]
[1725796768634,3.8445,130.07,130.05,1.3077]
[1725796768829,23.06,130.13,130.05,1.3077]
[1725796769230,23.06,130.13,130.04,2.6645]
[1725796770123,23.06,130.06,130.03,256.47351]
[1725796770527,3.845,130.05,130.03,256.47351]
[1725796771431,3.8446,130.06,130.03,256.47351]
[1725796771737,3.8446,130.06,130.03,260.31881]
[1725796774138,3.8446,130.06,130.04,3.8451]
[1725796774837,23.06,130.08,130.03,256.47351]
[1725796775437,26.904,130.08,130.05,3.8446]
[1725796776228,26.904,130.08,130.06,1.2757]
[1725796776426,23.06,130.08,130.06,1.2757]
[1725796777335,23.06,130.08,130.07,3.92494617]
[1725796778132,23.06,130.08,130.07,7.76914617]
[1725796780240,3.8432,130.11,130.07,7.76914617]
[1725796781137,3.8432,130.11,130.08,3.8439]
[1725796781841,3.8432,130.11,130.08,7.59361164]
[1725796784543,3.8429,130.12,130.09,3.8436]
[1725796788944,14.6764,130.14,130.08,7.59341164]
[1725796789344,14.6764,130.14,130.08,3.74971164]
[1725796790355,3.8434,130.1,130.08,3.74971164]
[1725796793245,3.78123798,130.15,130.08,3.74971164]
[1725796793452,41.58632917,130.16,130.08,3.74971164]
[1725796793653,14.6764,130.16,130.08,3.74971164]
[1725796793855,3.8433,130.1,130.08,3.74971164]
[1725796795450,3.8437,130.09,130.06,5.12]
[1725796795652,3.8437,130.09,130.06,1.2757]
[1725796796353,3.8435,130.1,130.07,3.8442]
[1725796797544,2.5868,130.14,130.07,3.8442]
[1725796797545,2.5868,130.14,130.07,3.89367755]
[1725796797749,2.5868,130.14,130.06,1.2757]
[1725796798450,3.8431,130.11,130.08,3.8438]
[1725796798649,3.8431,130.11,130.09,3.79304531]
[1725796798846,2.5868,130.14,130.09,3.79304531]
[1725796799050,3.8426,130.13,130.1,3.8432]
[1725796799352,3.8426,130.13,130.11,3.84186631]
[1725796800052,1.291,130.17,130.09,3.8435]
[1725796800053,23.06,130.16,130.09,3.8435]
[1725796800252,24.3776,130.16,130.1,3.78766347]
[1725796800854,28.14104518,130.16,130.1,3.78766347]
[1725796801252,1.3176,130.16,130.1,3.78766347]
[1725796801560,1.3176,130.16,130.09,3.8435]
[1725796801561,23.06,130.15,130.09,3.8435]
[1725796801956,23.06,130.15,130.09,7.6661476]
[1725796803557,1.3176,130.16,130.1,3.8433]
[1725796803758,1.3176,130.16,130.06,1.2757]
[1725796804059,1.291,130.17,130.06,1.2757]
[1725796804460,3.8422,130.14,130.06,1.2757]
[1725796804659,3.8422,130.14,130.1,3.8431]
[1725796804856,3.8425,130.13,130.1,7.60674335]
[1725796805258,23.06,130.16,130.1,3.76364335]
[1725796805562,23.06,130.16,130.06,1.2757]
[1725796805750,1.3692,130.15,130.06,1.2757]
[1725796806158,3.8429,130.12,130.08,3.8437]
[1725796806353,3.8429,130.12,130.09,3.84973097]
[1725796806557,3.8429,130.12,130.08,3.8437]
[1725796806960,3.8429,130.12,130.09,3.86087624]
[1725796807349,3.8429,130.12,130.08,3.8437]
[1725796807555,1.3039,130.14,130.09,7.71446856]
[1725796807753,1.3039,130.14,130.09,3.8436]
[1725796808154,3.8426,130.13,130.1,3.87501272]
[1725796808360,3.8426,130.13,130.1,7.71831272]
[1725796808561,3.8426,130.13,130.1,3.8433]
[1725796812964,3.8428,130.12,130.09,7.6531668]
[1725796813176,1.3039,130.14,130.05,1.3659]
[1725796813359,1.3692,130.13,130.05,1.3659]
[1725796813670,1.3692,130.13,130.02,1.2885]
[1725796814063,3.8444,130.07,130.04,3.8451]
[1725796815165,3.844,130.08,130.04,3.8451]
[1725796815471,1.3692,130.13,130.04,3.8451]
[1725796817172,3.8442,130.08,130.04,3.8451]
[1725796818171,3.8442,130.08,130.05,3.8448]
[1725796822973,3.8442,130.08,130.04,3.845]
[1725796823175,3.8443,130.07,130.04,3.845]
[1725796825475,3.8443,130.07,130.03,260.31881]
[1725796825677,3.8446,130.06,130.03,260.31881]
[1725796826073,3.845,130.05,130.03,256.47351]
[1725796842784,1.3204,130.08,130.03,256.47351]
[1725796842785,3.8444,130.07,130.03,256.47351]
[1725796843087,1.3204,130.08,130.03,256.47351]
[1725796843480,3.8447,130.06,130.03,260.31881]
[1725796844592,1.3204,130.08,130.03,256.47351]
[1725796845493,3.8451,130.04,130.03,256.47351]
[1725796888232,3.8449,130.05,130.03,256.47351]
[1725796888433,23.06,130.09,130.03,256.47351]
[1725796888839,3.8451,130.05,130.03,256.47351]
[1725796891441,3.8445,130.06,130.03,260.31861]
[1725796893635,3.8444,130.07,130.04,3.8451]
[1725796894936,3.844,130.08,130.05,3.8447]
[1725796895142,3.9361,130.16,130.04,3.968]
[1725796895945,23.06,130.15,130.04,3.968]
[1725796896446,3.8438,130.09,130.06,3.8445]
[1725796896640,3.8438,130.09,130.06,7.75253456]
[1725796896840,3.8438,130.09,130.06,3.8445]
[1725796897036,26.86036461,130.1,130.04,7.813]
[1725796897439,26.86036461,130.1,130.04,3.968]
[1725796897853,23.06,130.12,130.05,3.8448]
[1725796898145,23.06,130.15,130.05,3.8448]
[1725796898545,3.8439,130.09,130.05,3.8448]
[1725796898753,3.8439,130.09,130.06,7.73589953]
[1725796899044,3.8439,130.09,130.06,3.8444]
[1725796899235,3.8439,130.09,130.06,7.67215682]
[1725796900542,3.8435,130.1,130.07,3.8442]
[1725796900848,23.06,130.15,130.06,3.82775682]
[1725796901048,23.06,130.15,130.04,3.968]
[1725796901742,3.8437,130.09,130.06,3.8443]
[1725796901936,3.8437,130.09,130.07,3.8908158]
[1725796902345,3.8437,130.09,130.06,3.8443]
[1725796902848,3.8437,130.09,130.07,3.82929484]
[1725796905552,3.8434,130.1,130.07,7.67339484]
[1725796906955,3.843,130.12,130.09,3.8436]
[1725796907155,3.843,130.12,130.08,3.9469]
[1725796907944,3.843,130.12,130.08,7.7907]
[1725796908453,27.1001,130.16,130.08,3.9469]
[1725796908865,3.8433,130.11,130.08,3.9469]
[1725796909256,3.8433,130.11,130.08,7.7907]
[1725796914057,3.8433,130.11,130.08,6.464]
[1725796914252,27.1001,130.16,130.04,1.3435]
[1725796914453,0.2825909,130.15,130.03,256.47351]
[1725796914760,0.282633,130.14,130.03,256.47351]
[1725796914957,3.8451,130.04,130.03,256.47351]
[1725796929474,26.9051,130.04,130.03,256.47351]
[1725796930577,3.8451,130.04,130.03,256.47351]
[1725796933472,30.87762595,130.08,130.03,256.47351]
[1725796933678,3.996,130.08,130.03,256.47351]
[1725796934079,3.8449,130.05,130.03,256.47351]
[1725796934769,3.8444,130.07,130.03,260.31861]
[1725796936272,3.8446,130.06,130.03,256.47351]
[1725796937573,3.8448,130.05,130.03,256.47351]
[1725796938983,3.8446,130.06,130.03,256.47351]
[1725796940284,3.8446,130.06,130.03,260.31891]
[1725796941682,158.0623341,130.09,130.03,260.31891]
[1725796941683,154.18481449,130.09,130.04,3.845]
[1725796941883,154.18481449,130.09,130.03,256.47351]
[1725796942275,24.09,130.13,130.07,3.844]
[1725796942477,24.09,130.13,130.07,7.73340163]
[1725796942884,1.0,130.13,130.07,3.844]
[1725796943277,1.0,130.13,130.04,2.6141]
[1725796943677,1.0,130.13,130.05,3.915936]
[1725796944382,3.8439,130.09,130.05,3.915936]
[1725796944779,1.0,130.13,130.05,3.915936]
[1725796945181,3.8439,130.08,130.05,3.915936]
[1725796945383,3.8439,130.08,130.05,7.760736]
[1725796946687,3.8438,130.09,130.05,7.760736]
[1725796952686,3.844,130.08,130.05,7.760736]
[1725796954194,168.98167374,130.13,130.04,3.9196]